fUST/lending_fUST_20251013
["ID","MTS","AMOUNT","RATE_DAILY","PERIOD"]
[391092383,1760324097943,80.763768,0.0002,10]
[391092410,1760325032012,-625.929525,0.00027364,2]
[391092411,1760325032021,-1000.0,0.00027415,30]
[391092412,1760325032030,-235.7622831,0.00027426,60]
[391092413,1760325032040,-500.0,0.00027449,7]
[391092414,1760325032049,-310.0,0.00027993,2]
[391092415,1760325032058,-3005.70544373,0.0002804,2]
[391092416,1760325032068,-300.0,0.00028599,2]
[391092417,1760325032077,-158.0,0.000286,30]
[391092418,1760325032088,-158.0,0.000286,30]
[391092419,1760325032103,-339.31592385,0.00028663,2]
[391092420,1760325032119,-500.0,0.00029093,7]
[391092421,1760325032129,-535.49701392,0.0002913,2]
[391092422,1760325032138,-2486.40763863,0.00029141,2]
[391092423,1760325032147,-272.53,0.00029211,10]
[391092424,1760325032156,-227.11,0.00029211,10]
[391092425,1760325032165,-37424.89607421,0.0002922,2]
[391092426,1760325032176,-434.40841675,0.0002922,2]
[391092479,1760325043517,-150.0,0.00026352,2]
[391092480,1760325043527,-258.7,0.00028747,2]
[391092481,1760325043536,-189.26,0.00029211,10]
[391092482,1760325043545,-430.74,0.0002922,2]
[391092487,1760325046105,-2511.9229149,0.0002922,2]
[391092488,1760325046116,-747.0,0.0002922,2]
[391092585,1760326232149,-245.28430225,0.00023661,2]
[391092587,1760326232159,-150.0,0.00023661,2]
[391092589,1760326232168,-200.0,0.00023661,2]
[391092590,1760326232177,-84.72710306,0.000239,2]
[391092594,1760326232204,-76.85425721,0.000239,2]
[391092596,1760326232213,-172.5,0.00024261,2]
[391092597,1760326232222,-195.0,0.00024861,2]
[391092599,1760326232232,-179.95163936,0.00024985,2]
[391092601,1760326232241,-18.44410343,0.00025461,2]
[391092710,1760326497133,500.406473,0.00013699,2]
[391092711,1760326497336,500.406473,0.00020187,2]
[391092715,1760326543327,150.0,0.00020044,2]
[391092716,1760326624409,150.0,0.00020308,2]
[391092720,1760326705629,150.0,0.00020021,2]
[391092721,1760326786013,150.0,0.00019773,2]
[391092723,1760326866088,150.0,0.00019784,2]
[391092728,1760327033896,5000.0,0.00020971,2]
[391092729,1760327106749,150.0,0.00020281,2]
[391092730,1760327192622,150.0,0.00020255,2]
[391092737,1760327432290,-150.0,0.00021841,2]
[391092738,1760327432299,-172.5,0.00022441,2]
[391092740,1760327432309,-251.03634033,0.00022899,2]
[391092742,1760327432318,-195.0,0.00023041,2]
[391092744,1760327432327,-217.5,0.00023641,2]
[391092746,1760327432337,-240.0,0.00024241,2]
[391092748,1760327432346,-2089.07574424,0.00024534,2]
[391092750,1760327432355,-300.0,0.00024545,2]
[391092752,1760327432366,-1200.0,0.00024545,2]
[391092754,1760327432376,-151.0,0.00024546,7]
[391092756,1760327432385,-153.970527,0.00024546,7]
[391092758,1760327432395,-190.932446,0.00024546,7]
[391092760,1760327432405,-155.541937,0.00024546,7]
[391092762,1760327432419,-151.937025,0.00024546,7]
[391092764,1760327432428,-151.934109,0.00024546,7]
[391092766,1760327432438,-151.0,0.00024546,7]
[391092768,1760327432447,-152.784559,0.00024546,7]
[391092770,1760327432456,-151.0,0.00024546,7]
[391092772,1760327432466,-151.710147,0.00024546,7]
[391092774,1760327432475,-152.333516,0.00024546,7]
[391092776,1760327432485,-151.0,0.00024546,7]
[391092779,1760327432494,-158.82859,0.00024546,7]
[391092782,1760327432503,-151.0,0.00024546,7]
[391092783,1760327432512,-151.0,0.00024546,7]
[391092785,1760327432522,-154.334632,0.00024546,7]
[391092786,1760327432531,-151.0,0.00024546,7]
[391092788,1760327432540,-152.955357,0.00024546,7]
[391092790,1760327432549,-153.297515,0.00024546,7]
[391092792,1760327432559,-152.158419,0.00024546,7]
[391092794,1760327432567,-151.0,0.00024546,7]
[391092795,1760327432576,-151.0,0.00024546,7]
[391092797,1760327432585,-151.0,0.00024546,7]
[391092799,1760327432594,-151.0,0.00024546,7]
[391092800,1760327432604,-151.0,0.00024546,7]
[391092802,1760327432613,-285.713584,0.00024546,7]
[391092804,1760327432622,-151.0,0.00024546,7]
[391092805,1760327432632,-151.0,0.00024546,7]
[391092807,1760327432641,-151.0,0.00024546,7]
[391092808,1760327432650,-152.135902,0.00024546,7]
[391092810,1760327432660,-151.0,0.00024546,7]
[391092811,1760327432669,-151.0,0.00024546,7]
[391092813,1760327432678,-151.0,0.00024546,7]
[391092815,1760327432687,-151.0,0.00024546,7]
[391092816,1760327432696,-151.0,0.00024546,7]
[391092818,1760327432705,-151.0,0.00024546,7]
[391092819,1760327432715,-152.531305,0.00024546,7]
[391092821,1760327432724,-151.0,0.00024546,7]
[391092823,1760327432733,-251.02801605,0.00024546,7]
[391092824,1760327432742,-152.941326,0.00024546,7]
[391092826,1760327432751,-154.581921,0.00024546,7]
[391092828,1760327432760,-151.0,0.00024546,7]
[391092829,1760327432769,-151.0,0.00024546,7]
[391092831,1760327432779,-484.639792,0.00024546,7]
[391092832,1760327432788,-484.639792,0.00024546,7]
[391092834,1760327432797,-484.639792,0.00024546,7]
[391092836,1760327432806,-151.0,0.00024546,7]
[391092838,1760327432816,-484.639792,0.00024546,7]
[391092839,1760327432825,-153.004031,0.00024546,7]
[391092841,1760327432834,-151.0,0.00024546,7]
[391092852,1760327432961,-484.639792,0.00024546,7]
[391092854,1760327432982,-188.461489,0.00024546,7]
[391092856,1760327432996,-484.639792,0.00024546,7]
[391092857,1760327433006,-484.639792,0.00024546,7]
[391092859,1760327433016,-484.639792,0.00024546,7]
[391092861,1760327433025,-200.0,0.00024546,3]
[391092862,1760327433035,-484.639792,0.00024546,7]
[391092864,1760327433044,-484.639792,0.00024546,7]
[391092866,1760327433054,-484.639792,0.00024546,7]
[391092868,1760327433065,-484.639792,0.00024546,7]
[391092869,1760327433074,-154.287719,0.00024546,7]
[391092871,1760327433084,-152.785475,0.00024546,7]
[391092873,1760327433092,-151.0,0.00024546,7]
[391092874,1760327433101,-151.0,0.00024546,7]
[391092876,1760327433111,-151.937815,0.00024546,7]
[391092878,1760327433121,-151.0,0.00024546,7]
[391092879,1760327433130,-151.914201,0.00024546,7]
[391092881,1760327433139,-157.52942,0.00024546,7]
[391092883,1760327433148,-151.0,0.00024546,7]
[391092884,1760327433157,-151.0,0.00024546,7]
[391092886,1760327433166,-151.0,0.00024546,7]
[391092888,1760327433175,-190.349462,0.00024546,7]
[391092890,1760327433185,-151.0,0.00024546,7]
[391092891,1760327433194,-151.0,0.00024546,7]
[391092893,1760327433203,-157.342757,0.00024546,7]
[391092895,1760327433213,-151.0,0.00024546,7]
[391092896,1760327433222,-151.0,0.00024546,7]
[391092898,1760327433231,-151.0,0.00024546,7]
[391092900,1760327433240,-299.233056,0.00024546,7]
[391092901,1760327433249,-151.0,0.00024546,7]
[391092903,1760327433259,-151.0,0.00024546,7]
[391092905,1760327433267,-151.0,0.00024546,7]
[391092906,1760327433276,-151.0,0.00024546,7]
[391092908,1760327433285,-151.0,0.00024546,7]
[391092910,1760327433294,-226.793527,0.00024546,7]
[391092911,1760327433303,-191.137494,0.00024546,7]
[391092913,1760327433313,-191.137494,0.00024546,7]
[391092914,1760327433322,-191.137494,0.00024546,7]
[391092916,1760327433331,-191.137494,0.00024546,7]
[391092918,1760327433339,-191.137494,0.00024546,7]
[391092919,1760327433348,-191.137494,0.00024546,7]
[391092921,1760327433358,-191.137494,0.00024546,7]
[391092923,1760327433368,-191.137494,0.00024546,7]
[391092925,1760327433378,-191.137494,0.00024546,7]
[391092926,1760327433387,-191.137494,0.00024546,7]
[391092928,1760327433396,-191.137494,0.00024546,7]
[391092930,1760327433406,-191.137494,0.00024546,7]
[391092931,1760327433415,-191.137494,0.00024546,7]
[391092933,1760327433425,-191.137494,0.00024546,7]
[391092935,1760327433434,-191.137494,0.00024546,7]
[391092937,1760327433443,-191.137494,0.00024546,7]
[391092938,1760327433452,-191.137494,0.00024546,7]
[391092940,1760327433462,-191.137494,0.00024546,7]
[391092942,1760327433471,-191.137494,0.00024546,7]
[391092943,1760327433480,-191.13749,0.00024546,7]
[391092945,1760327433489,-158.442175,0.00024546,7]
[391092947,1760327433498,-153.471486,0.00024546,7]
[391092948,1760327433507,-151.0,0.00024546,7]
[391092950,1760327433516,-151.0,0.00024546,7]
[391092952,1760327433525,-214.921115,0.00024546,7]
[391092953,1760327433534,-151.0,0.00024546,7]
[391092955,1760327433543,-151.0,0.00024546,7]
[391092957,1760327433553,-154.865473,0.00024546,7]
[391092959,1760327433562,-151.0,0.00024546,7]
[391092960,1760327433571,-151.0,0.00024546,7]
[391092962,1760327433579,-159.629881,0.00024546,7]
[391092964,1760327433588,-151.0,0.00024546,7]
[391092965,1760327433597,-178.23266,0.00024546,7]
[391092967,1760327433607,-154.004993,0.00024546,7]
[391092969,1760327433616,-151.70547,0.00024546,7]
[391092970,1760327433625,-152.340234,0.00024546,7]
[391092972,1760327433634,-507.7337803,0.00024546,7]
[391092974,1760327433643,-30450.40524743,0.00024546,2]
[391092975,1760327433653,-1000.0,0.000248,2]
[391092977,1760327433662,-262.5,0.00024841,2]
[391092979,1760327433671,-179.93412152,0.00024985,2]
[391092981,1760327433687,-203.32182989,0.0002589,30]
[391092982,1760327433696,-500.0,0.0002603,2]
[391092984,1760327433706,-501.10530483,0.0002603,2]
[391092986,1760327433715,-229.62074082,0.0002603,2]
[391092987,1760327433724,-500.0,0.0002603,2]
[391092989,1760327433732,-500.0,0.0002603,2]
[391092991,1760327433741,-500.0,0.0002603,2]
[391092992,1760327433751,-500.0,0.0002603,2]
[391092994,1760327433759,-209.88618504,0.00026573,2]
[391092996,1760327433768,-211.51102598,0.00026573,2]
[391092997,1760327433777,-186.20732905,0.00026573,2]
[391092999,1760327433786,-500.0,0.00026573,2]
[391093001,1760327433795,-500.0,0.00026573,2]
[391093003,1760327433804,-500.0,0.00026573,2]
[391093004,1760327433814,-500.0,0.00026573,2]
[391093006,1760327433824,-500.0,0.00026573,2]
[391093008,1760327433833,-500.0,0.00026573,2]
[391093009,1760327433842,-500.0,0.00026573,2]
[391093011,1760327433851,-367.61267472,0.00026573,2]
[391093013,1760327433862,-500.0,0.00026573,2]
[391093015,1760327433872,-500.0,0.00026573,2]
[391093016,1760327433882,-500.0,0.00026573,2]
[391093018,1760327433891,-500.0,0.00026573,2]
[391093020,1760327433903,-500.0,0.00026573,2]
[391093022,1760327433912,-500.0,0.00026573,2]
[391093023,1760327433922,-500.0,0.00026573,2]
[391093025,1760327433931,-482.43701804,0.00026573,2]
[391093027,1760327433941,-500.0,0.00026573,2]
[391093028,1760327433950,-473.73853695,0.00026573,2]
[391093030,1760327433959,-500.0,0.00026573,2]
[391093032,1760327433969,-500.0,0.00026573,2]
[391093034,1760327433979,-500.0,0.00026573,2]
[391093035,1760327433988,-500.0,0.00026573,2]
[391093037,1760327434000,-500.0,0.00026573,2]
[391093038,1760327434010,-500.0,0.00026573,2]
[391093039,1760327434020,-500.0,0.00026573,2]
[391093040,1760327434032,-500.0,0.00026573,2]
[391093041,1760327434043,-162.401916,0.00026574,7]
[391093042,1760327434055,-151.0,0.00026574,7]
[391093043,1760327434064,-151.0,0.00026574,7]
[391093044,1760327434080,-151.0,0.00026574,7]
[391093045,1760327434090,-151.0,0.00026574,7]
[391093046,1760327434100,-151.0,0.00026574,7]
[391093047,1760327434110,-151.0,0.00026574,7]
[391093048,1760327434120,-151.0,0.00026574,7]
[391093049,1760327434130,-151.0,0.00026574,7]
[391093050,1760327434140,-175.454672,0.00026574,7]
[391093051,1760327434163,-151.0,0.00026574,7]
[391093052,1760327434184,-151.0,0.00026574,7]
[391093053,1760327434195,-151.0,0.00026574,7]
[391093054,1760327434205,-151.0,0.00026574,7]
[391093055,1760327434215,-151.0,0.00026574,7]
[391093056,1760327434226,-151.0,0.00026574,7]
[391093057,1760327434236,-161.990537,0.00026574,7]
[391093058,1760327434245,-151.0,0.00026574,7]
[391093059,1760327434254,-151.0,0.00026574,7]
[391093060,1760327434263,-151.0,0.00026574,7]
[391093061,1760327434272,-151.0,0.00026574,7]
[391093062,1760327434282,-151.0,0.00026574,7]
[391093063,1760327434291,-209.644558,0.00026574,7]
[391093064,1760327434301,-484.639792,0.00026574,7]
[391093065,1760327434310,-484.639792,0.00026574,7]
[391093066,1760327434320,-484.639792,0.00026574,7]
[391093067,1760327434330,-484.639792,0.00026574,7]
[391093068,1760327434339,-484.639792,0.00026574,7]
[391093069,1760327434350,-484.639792,0.00026574,7]
[391093070,1760327434359,-484.639792,0.00026574,7]
[391093071,1760327434369,-484.639784,0.00026574,7]
[391093072,1760327434378,-151.0,0.00026574,7]
[391093073,1760327434388,-151.0,0.00026574,7]
[391093074,1760327434397,-1000.0,0.00026578,2]
[391093075,1760327434407,-1000.0,0.00026578,2]
[391093076,1760327434417,-501.13937684,0.00026578,2]
[391093077,1760327434427,-503.14930125,0.00026578,2]
[391093078,1760327434436,-1011.32927781,0.00026578,2]
[391093079,1760327434446,-420.0,0.00026603,2]
[391093080,1760327434455,-150.0,0.00026656,2]
[391093081,1760327434464,-500.406473,0.00026676,2]
[391093082,1760327434474,-1125.0,0.00026724,2]
[391093083,1760327434483,-151.0,0.00026725,7]
[391093084,1760327434492,-151.0,0.00026781,2]
[391093085,1760327434501,-151.0,0.00026781,2]
[391093086,1760327434511,-151.36825286,0.00026781,2]
[391093087,1760327434520,-151.0,0.00026781,2]
[391093088,1760327434529,-151.0,0.00026781,2]
[391093089,1760327434539,-151.0,0.00026781,2]
[391093090,1760327434548,-151.0,0.00026781,2]
[391093091,1760327434558,-154.39008181,0.00026781,2]
[391093092,1760327434567,-1000.0,0.000268,7]
[391093093,1760327434576,-151.0,0.000268,7]
[391093094,1760327434586,-222.476615,0.000268,7]
[391093095,1760327434595,-151.0,0.000268,7]
[391093096,1760327434604,-151.0,0.000268,7]
[391093097,1760327434613,-151.0,0.000268,7]
[391093098,1760327434623,-245.035737,0.000268,7]
[391093099,1760327434632,-151.0,0.000268,7]
[391093100,1760327434641,-151.0,0.000268,7]
[391093101,1760327434650,-151.0,0.000268,7]
[391093102,1760327434660,-151.0,0.000268,7]
[391093103,1760327434669,-151.0,0.000268,7]
[391093104,1760327434679,-197.773256,0.000268,7]
[391093105,1760327434688,-151.0,0.000268,7]
[391093106,1760327434697,-151.0,0.000268,7]
[391093107,1760327434707,-500.0,0.000268,2]
[391093108,1760327434716,-500.0,0.00026821,2]
[391093109,1760327434725,-506.66293688,0.00026852,2]
[391093110,1760327434735,-1329.83570976,0.0002689,2]
[391093111,1760327434744,-262.39860989,0.00026979,2]
[391093112,1760327434753,-240.38585762,0.00026979,2]
[391093113,1760327434762,-75818.97715185,0.0002698,2]
[391093114,1760327434784,-314.5842607,0.00026573,2]
[391093115,1760327434796,-185.4157393,0.00026573,2]
[391093116,1760327434805,-500.0,0.00026573,2]
[391093117,1760327434815,-6657.69906348,0.0002698,2]
[391093118,1760327434827,-956.23404994,0.0002698,2]
[391093119,1760327434838,-1958.7991009,0.0002698,2]
[391093120,1760327434856,-13206.7997661,0.0002698,2]
[391093121,1760327434868,-2149.87208673,0.0002698,2]
[391093122,1760327434878,-7484.6413526,0.0002699,2]
[391093123,1760327434887,-151.0,0.0002699,7]
[391093124,1760327434897,-151.0,0.0002699,7]
[391093125,1760327434909,-1329.83570975,0.00027005,2]
[391093126,1760327434919,-1329.83570975,0.0002712,2]
[391093127,1760327434929,-1501.89709416,0.00027126,2]
[391093128,1760327434941,-1500.0,0.00027126,2]
[391093129,1760327434950,-199.879557,0.0002719,2]
[391093130,1760327434961,-1329.83570975,0.00027234,2]
[391093131,1760327434972,-357.75,0.00027239,2]
[391093132,1760327434983,-502.11084286,0.00027255,2]
[391093133,1760327434994,-354.79914516,0.00027284,2]
[391093134,1760327435007,-1657.60509242,0.00027315,2]
[391093135,1760327435016,-344.74,0.00027324,3]
[391093136,1760327435026,-172.37,0.00027324,3]
[391093137,1760327435035,-517.14,0.00027324,3]
[391093138,1760327435045,-321.76,0.00027324,10]
[391093139,1760327435054,-79775.39281011,0.00027324,2]
[391093140,1760327435066,-10569.70098352,0.00027324,2]
[391093141,1760327435079,-3433.07258009,0.00027324,2]
[391093142,1760327435090,-526.0,0.00027324,2]
[391093150,1760327438370,-107192.59606328,0.00027324,2]
[391093151,1760327438380,-505.46787646,0.00027348,2]
[391093152,1760327438390,-1329.83570975,0.00027349,2]
[391093153,1760327438400,-1000.0,0.00027369,2]
[391093154,1760327438409,-100748.381219,0.0002739,2]
[391093155,1760327438420,-500.0,0.00027397,30]
[391093156,1760327438430,-500.0,0.00027397,30]
[391093157,1760327438440,-500.0,0.00027397,30]
[391093158,1760327438450,-500.0,0.00027397,30]
[391093159,1760327438460,-500.0,0.00027397,30]
[391093160,1760327438470,-500.0,0.00027397,30]
[391093161,1760327438479,-500.0,0.00027397,30]
[391093162,1760327438489,-500.0,0.00027397,30]
[391093163,1760327438499,-500.0,0.00027397,30]
[391093164,1760327438509,-500.0,0.00027397,30]
[391093165,1760327438519,-500.0,0.00027397,30]
[391093166,1760327438529,-500.0,0.00027397,30]
[391093167,1760327438539,-500.0,0.00027397,30]
[391093168,1760327438549,-500.0,0.00027397,30]
[391093169,1760327438560,-500.0,0.00027397,30]
[391093170,1760327438570,-500.0,0.00027397,30]
[391093171,1760327438579,-500.0,0.00027397,30]
[391093172,1760327438589,-500.0,0.00027397,30]
[391093173,1760327438598,-500.0,0.00027397,30]
[391093174,1760327438608,-500.0,0.00027397,30]
[391093175,1760327438617,-789.0,0.00027398,2]
[391093176,1760327438626,-1541.71,0.000274,2]
[391093177,1760327438636,-6753.00913151,0.000274,7]
[391093178,1760327438648,-19162.52086849,0.000274,7]
[391093179,1760327438658,-4140.85,0.000274,2]
[391093180,1760327438668,-100748.381219,0.00027405,2]
[391093181,1760327438678,-999.0,0.00027433,2]
[391093182,1760327438687,-503.19017242,0.00027433,2]
[391093183,1760327438698,-119834.65140009,0.00027444,2]
[391093184,1760327438710,-6455.72458729,0.00027444,2]
[391093185,1760327438722,-3389.784906,0.00027444,2]
[391093186,1760327438737,-1896.94150928,0.00027444,2]
[391093187,1760327438751,-711.80323751,0.00027444,2]
[391093269,1760327585871,150.0,0.00019737,2]
[391093270,1760327667003,150.0,0.00020076,2]
[391093271,1760327715008,502.87,0.00020971,2]
[391093272,1760327745906,150.0,0.00020064,2]
[391093273,1760327826015,150.0,0.00020027,2]
[391093274,1760327905520,150.0,0.00019723,2]
[391093275,1760327984940,150.0,0.00019718,2]
[391093277,1760328065855,150.0,0.00019702,2]
[391093278,1760328154153,150.0,0.00019706,2]
[391093279,1760328232426,150.0,0.00020081,2]
[391093301,1760328311235,150.0,0.00020308,2]
[391093302,1760328389701,150.0,0.0002026,2]
[391093304,1760328469123,150.0,0.00020003,2]
[391093305,1760328548048,150.0,0.00019696,2]
[391093311,1760328627135,150.0,0.00019688,2]
[391093346,1760328632633,-5000.0,0.00021244,2]
[391093348,1760328632643,-5000.0,0.00021244,2]
[391093350,1760328632653,-5000.0,0.00021244,2]
[391093352,1760328632664,-5000.0,0.00021244,2]
[391093353,1760328632673,-5000.0,0.00021244,2]
[391093355,1760328632683,-193.73,0.00021478,2]
[391093357,1760328632692,-150.0,0.00021486,2]
[391093358,1760328632701,-162.380719,0.00021503,2]
[391093359,1760328632711,-151.0,0.00021503,2]
[391093360,1760328632720,-151.0,0.00021503,2]
[391093361,1760328632730,-151.0,0.00021503,2]
[391093362,1760328632740,-151.0,0.00021503,2]
[391093363,1760328632749,-151.0,0.00021503,2]
[391093364,1760328632759,-151.0,0.00021503,2]
[391093365,1760328632768,-151.0,0.00021503,2]
[391093366,1760328632778,-151.0,0.00021503,2]
[391093367,1760328632787,-200.0,0.0002151,2]
[391093369,1760328632796,-1200.0,0.00021512,2]
[391093370,1760328632806,-300.0,0.00021513,2]
[391093371,1760328632815,-300.0,0.00021513,2]
[391093372,1760328632824,-300.0,0.00021513,2]
[391093373,1760328632833,-279.0,0.00021513,2]
[391093374,1760328632843,-300.0,0.00021513,2]
[391093375,1760328632852,-500.0,0.00021514,2]
[391093376,1760328632861,-500.0,0.00021514,2]
[391093377,1760328632870,-219.30428188,0.00021514,2]
[391093378,1760328632879,-220.27077978,0.00021514,2]
[391093379,1760328632888,-1200.0,0.00021514,2]
[391093380,1760328632898,-50000.0,0.00021515,2]
[391093381,1760328632907,-500.0,0.00021516,2]
[391093382,1760328632916,-500.0,0.00021516,2]
[391093383,1760328632926,-500.0,0.00021516,2]
[391093384,1760328632935,-500.0,0.00021516,2]
[391093385,1760328632944,-500.0,0.00021516,2]
[391093386,1760328632954,-500.0,0.00021516,2]
[391093387,1760328632964,-500.0,0.000216,2]
[391093388,1760328632973,-500.0,0.00021771,2]
[391093389,1760328632982,-300.0,0.00021945,20]
[391093390,1760328632992,-300.0,0.00021945,20]
[391093391,1760328633002,-300.0,0.00021945,20]
[391093392,1760328633011,-300.0,0.00021945,20]
[391093393,1760328633020,-300.0,0.00021945,20]
[391093394,1760328633030,-300.0,0.00021945,20]
[391093395,1760328633039,-300.0,0.00021945,20]
[391093396,1760328633048,-300.0,0.00021945,20]
[391093397,1760328633057,-300.0,0.00021945,20]
[391093398,1760328633067,-300.0,0.00021945,20]
[391093399,1760328633076,-300.0,0.00021945,20]
[391093400,1760328633085,-300.0,0.00021945,20]
[391093401,1760328633094,-300.0,0.00021945,20]
[391093402,1760328633103,-300.0,0.00021945,20]
[391093403,1760328633112,-300.0,0.00021945,20]
[391093404,1760328633121,-175.0,0.00022,2]
[391093405,1760328633130,-168.3888056,0.00022051,2]
[391093406,1760328633139,-172.5,0.00022086,2]
[391093407,1760328633148,-1000.0,0.00022319,2]
[391093408,1760328633157,-600.0,0.00022383,20]
[391093409,1760328633166,-219.38688115,0.00022599,2]
[391093410,1760328633175,-195.0,0.00022686,2]
[391093411,1760328633184,-1500.0,0.00022867,2]
[391093412,1760328633194,-290.6,0.00023268,2]
[391093413,1760328633203,-217.5,0.00023286,2]
[391093414,1760328633212,-420.0,0.00023389,2]
[391093415,1760328633221,-513.48917909,0.00023415,2]
[391093416,1760328633231,-453.41441517,0.0002348,2]
[391093417,1760328633240,-2089.07574424,0.0002385,2]
[391093418,1760328633250,-240.0,0.00023886,2]
[391093419,1760328633259,-262.5,0.00024486,2]
[391093420,1760328633268,-720.0,0.00024621,20]
[391093421,1760328633277,-119.35592113,0.00024688,2]
[391093440,1760328638580,-61.98933887,0.00024688,2]
[391093441,1760328638590,-4962.103927,0.00024747,2]
[391093442,1760328638600,-313.40796447,0.00024883,2]
[391093443,1760328638609,-2100.0,0.00024983,2]
[391093444,1760328638619,-387.46,0.00025058,2]
[391093445,1760328638629,-1000.0,0.00025073,30]
[391093446,1760328638638,-587.0,0.00025429,2]
[391093447,1760328638648,-500.5103602,0.0002575,2]
[391093448,1760328638658,-342.71388643,0.0002575,2]
[391093449,1760328638667,-265.555701,0.0002575,2]
[391093450,1760328638677,-501.93642954,0.0002575,2]
[391093451,1760328638687,-2100.0,0.00026079,2]
[391093452,1760328638696,-500.83987267,0.00026392,2]
[391093453,1760328638706,-203.90349356,0.00026392,2]
[391093454,1760328638715,-501.73234664,0.00026392,2]
[391093455,1760328638726,-168.27010033,0.00026574,2]
[391093456,1760328638736,-183.67902692,0.00026574,2]
[391093457,1760328638745,-484.33,0.00026848,2]
[391093458,1760328638755,-80628.6083178,0.0002699,2]
[391093459,1760328638765,-268.14,0.0002699,10]
[391093460,1760328638774,-56046.0344867,0.00027,2]
[391093461,1760328638784,-864.0,0.00027083,30]
[391093462,1760328638793,-2100.0,0.00027175,2]
[391093463,1760328638803,-1105.07006162,0.00027237,2]
[391093464,1760328638814,-80628.6083178,0.00027323,2]
[391093465,1760328638823,-160.0,0.00027329,2]
[391093466,1760328638832,-5246.98880949,0.00027337,2]
[391093467,1760328638842,-4656.14296998,0.00027362,2]
[391093468,1760328638854,-4260.07103539,0.00027362,2]
[391093469,1760328638866,-71712.39431243,0.00027362,2]
[391093470,1760328638875,-172.37,0.00027362,3]
[391093471,1760328638885,-517.11,0.00027362,3]
[391093472,1760328638895,-80628.6083178,0.00027372,2]
[391093473,1760328638905,-23585.4593135,0.00027382,2]
[391093474,1760328638915,-2211.9509811,0.00027382,2]
[391093475,1760328638925,-999.0,0.00027397,2]
[391093476,1760328638935,-49533.10707517,0.00027424,2]
[391093881,1760328646536,-911.25202775,0.00027424,2]
[391093882,1760328721274,300.97,0.00027397,120]
[391093884,1760328784787,150.0,0.00019849,2]
[391093887,1760328944125,150.0,0.00020044,2]
[391093890,1760329263840,150.0,0.0001998,2]
[391093891,1760329270116,437.383897,0.00013699,2]
[391093892,1760329270313,437.383897,0.00020187,2]
[391093893,1760329342032,150.0,0.00019873,2]
[391093899,1760329420181,150.0,0.0002015,2]
[391093910,1760329498112,5702.33,0.00027397,120]
[391093911,1760329501381,150.0,0.00020102,2]
[391093914,1760329580496,150.0,0.00020085,2]
[391093918,1760329656976,150.0,0.00020104,2]
[391093919,1760329735316,150.0,0.00019657,2]
[391093935,1760329832659,-150.0,0.00021444,2]
[391093936,1760329832671,-150.0,0.00021609,2]
[391093937,1760329832680,-158.38369845,0.00021832,2]
[391093938,1760329832689,-45.79193455,0.00022209,2]
[391093939,1760329832715,-126.70806545,0.00022209,2]
[391093940,1760329832724,-195.0,0.00022809,2]
[391093941,1760329832733,-150.0,0.00023294,2]
[391093942,1760329832741,-217.5,0.00023409,2]
[391093943,1760329832751,-160.0,0.00023562,2]